{"text_format":"1","workbook":"xlsx","n_sheets":16,"sheets":["Leggimi","Riepilogo","Gennaio","Febbraio","Marzo","Aprile","Maggio","Giugno","Luglio","Agosto","Settembre","Ottobre","Novembre","Dicembre","TOTALI","GRAFICI"],"not_rendered":{"charts":14,"images":1,"macros":1,"external_links":0,"defined_names":0,"comments":0,"pivot_tables":0},"unopened":[],"bounds":{"document_bytes":16777216,"sheet_cells":100000,"rows_first":2000,"rows_last":500,"rows_between":2000,"halvings":0,"cell_chars":16384,"cell_head_chars":4096},"cells_cut":0,"cells_raw":0,"read":"whole","date_system":"1900"}

{"sheet":"Leggimi","index":0,"n_rows":13,"n_cols":1,"rows_kept":13,"cut":false,"hidden":false,"merged":[]}
["QUESTO FILE UTILIZZA IL PROGRAMMA DI EXCEL"]
["Semplice file per conteggiare le spese sostenute giornalmente; le descrizioni di"]
["spesa inserite, sono quelle maggiormente utilizzate in famiglia."]
["Nel foglio di Riepilogo, volendo, è possibile inserire gli stipendi, (uno o due) e le entrate extra,"]
["mentre nei fogli dei mesi, si inseriscono le varie spese sostenute giornalmente, nelle rispettive voci."]
["Per esempio, SPESE AUTO - Autostrada, Carburante, Varie ecc. SPESE CASA - Condominio,  "]
["Telefono, Mercato, Farmacia, Varie ecc. SPESE VARIE - Bar, Viaggi, Calzature, Varie ecc."]
["Spero che i fogli gestiti così, siano utili per segnare le Vostre spese giornaliere."]
["N.B. I fogli sono protetti da scrittura, per evitare cancellazioni accidentali e/o errori di battitura."]
["Dato che, in alcune celle, sono presenti delle formule, se cancellate il programma non funzionerebbe"]
["più, le celle che sono utilizzate per i dati, sono libere per l'inserimento e/o la modifica degli stessi."]
["Un cordiale saluto e Buon Lavoro - Program By - Maurizio Vignazzi."]
["E-mail: maurivi53@libero.it"]

{"sheet":"Riepilogo","index":1,"n_rows":65,"n_cols":7,"rows_kept":65,"cut":false,"hidden":false,"merged":[[3,0,3,6],[64,0,64,6]]}
[]
[]
[]
[]
["MESE","I° STIPENDIO","II° STIPENDIO","ENTRATE VARIE","TOTALE ENTRATE","TOTALE USCITE","DIFFERENZA"]
["Gennaio",null,null,null,{"$f":"B6+C6+D6","v":0},{"$f":"Gennaio!AI24","v":0},{"$f":"E6-F6","v":0}]
["Febbraio",null,null,null,{"$f":"B7+C7+D7","v":0},{"$f":"Febbraio!AI24","v":0},{"$f":"E7-F7","v":0}]
["Marzo",null,null,null,0,{"$f":"Marzo!AI24","v":0},0]
["Aprile",null,null,null,0,{"$f":"Aprile!AI24","v":0},0]
["Maggio",null,null,null,0,{"$f":"Maggio!AI24","v":0},0]
["Giugno",null,null,null,0,{"$f":"Giugno!AI24","v":0},0]
["Luglio",null,null,null,0,{"$f":"Luglio!AI24","v":0},0]
["Agosto",null,null,null,0,{"$f":"Agosto!AI24","v":0},0]
["Settembre",null,null,null,0,{"$f":"Settembre!AI24","v":0},0]
["Ottobre",null,null,null,0,{"$f":"Ottobre!AI24","v":0},0]
["Novembre",null,null,null,0,{"$f":"Novembre!AI24","v":0},0]
["Dicembre",null,null,null,0,{"$f":"Dicembre!AI24","v":0},0]
["SOMME TOTALI ANNO '2017",{"$f":"SUM(B6:B17)","v":0},0,0,0,0,0]
[]
[]
[]
[]
[]
[]
[]
[]
[]
[]
[]
[]
[]
[]
[]
[]
[]
[]
[]
[]
[]
[]
[]
[]
[]
[]
[]
[]
[]
[]
[]
[]
[]
[]
[]
[]
[]
[]
[]
[]
[]
[]
[]
[]
[]
[]
["RITORNO"]

{"sheet":"Gennaio","index":2,"n_rows":24,"n_cols":36,"rows_kept":24,"cut":false,"hidden":false,"merged":[[2,35,4,35],[0,35,1,35],[7,35,22,35],[23,35,25,35],[19,1,19,2],[20,1,20,2],[6,1,6,2],[14,1,14,2],[17,1,17,2],[0,0,1,0],[0,1,1,2],[2,0,8,0],[2,1,2,2],[3,1,3,2],[4,1,4,2],[5,1,5,2],[7,1,7,2],[8,1,8,2],[23,0,25,0],[0,34,1,34],[23,31,25,33],[23,34,25,34],[15,1,15,2],[11,1,11,2],[12,1,12,2],[13,1,13,2],[9,0,15,0],[16,0,22,0],[21,1,21,2],[22,1,22,2],[9,1,9,2],[10,1,10,2],[16,1,16,2],[18,1,18,2]]}
["Gennaio '2017","GIORNO",null,1,2,3,4,5,6,7,8,9,10,11,12,13,14,15,16,17,18,19,20,21,22,23,24,25,26,27,28,29,30,31,"TOTALI","PUNTI ESSO"]
[null,null,null,"D","L","M","M","G","V","S","D","L","M","M","G","V","S","D","L","M","M","G","V","S","D","L","M","M","G","V","S","D","L","M"]
["SPESE AUTO","Autostrada",null,null,null,null,null,null,null,null,null,null,null,null,null,null,null,null,null,null,null,null,null,null,null,null,null,null,null,null,null,null,null,null,{"$f":"SUM(D3:AH3)","v":0}]
[null,"Assicurazione",null,null,null,null,null,null,null,null,null,null,null,null,null,null,null,null,null,null,null,null,null,null,null,null,null,null,null,null,null,null,null,null,{"$f":"SUM(D4:AH4)","v":0}]
[null,"Bollo",null,null,null,null,null,null,null,null,null,null,null,null,null,null,null,null,null,null,null,null,null,null,null,null,null,null,null,null,null,null,null,null,0]
[null,"Carburante",null,null,null,null,null,null,null,null,null,null,null,null,null,null,null,null,null,null,null,null,null,null,null,null,null,null,null,null,null,null,null,null,0]
[null,"Punti Esso",null,null,null,null,null,null,null,null,null,null,null,null,null,null,null,null,null,null,null,null,null,null,null,null,null,null,null,null,null,null,null,null,null,{"$f":"SUM(D7:AH7)","v":0}]
[null,"Tagliando",null,null,null,null,null,null,null,null,null,null,null,null,null,null,null,null,null,null,null,null,null,null,null,null,null,null,null,null,null,null,null,null,0]
[null,"Varie",null,null,null,null,null,null,null,null,null,null,null,null,null,null,null,null,null,null,null,null,null,null,null,null,null,null,null,null,null,null,null,null,0]
["SPESE CASA","Spese Condominiali",null,null,null,null,null,null,null,null,null,null,null,null,null,null,null,null,null,null,null,null,null,null,null,null,null,null,null,null,null,null,null,null,0]
[null,"Panetteria",null,null,null,null,null,null,null,null,null,null,null,null,null,null,null,null,null,null,null,null,null,null,null,null,null,null,null,null,null,null,null,null,0]
[null,"Macelleria",null,null,null,null,null,null,null,null,null,null,null,null,null,null,null,null,null,null,null,null,null,null,null,null,null,null,null,null,null,null,null,null,0]
[null,"Mercato",null,null,null,null,null,null,null,null,null,null,null,null,null,null,null,null,null,null,null,null,null,null,null,null,null,null,null,null,null,null,null,null,0]
[null,"Supermercato",null,null,null,null,null,null,null,null,null,null,null,null,null,null,null,null,null,null,null,null,null,null,null,null,null,null,null,null,null,null,null,null,0]
[null,"Farmacia",null,null,null,null,null,null,null,null,null,null,null,null,null,null,null,null,null,null,null,null,null,null,null,null,null,null,null,null,null,null,null,null,0]
[null,"Varie",null,null,null,null,null,null,null,null,null,null,null,null,null,null,null,null,null,null,null,null,null,null,null,null,null,null,null,null,null,null,null,null,0]
["SPESE VARIE","Bar",null,null,null,null,null,null,null,null,null,null,null,null,null,null,null,null,null,null,null,null,null,null,null,null,null,null,null,null,null,null,null,null,0]
[null,"Ristorante",null,null,null,null,null,null,null,null,null,null,null,null,null,null,null,null,null,null,null,null,null,null,null,null,null,null,null,null,null,null,null,null,0]
[null,"Ricarica Cellulare",null,null,null,null,null,null,null,null,null,null,null,null,null,null,null,null,null,null,null,null,null,null,null,null,null,null,null,null,null,null,null,null,0]
[null,"Viaggi o Ferie",null,null,null,null,null,null,null,null,null,null,null,null,null,null,null,null,null,null,null,null,null,null,null,null,null,null,null,null,null,null,null,null,0]
[null,"Medico o Dentista",null,null,null,null,null,null,null,null,null,null,null,null,null,null,null,null,null,null,null,null,null,null,null,null,null,null,null,null,null,null,null,null,0]
[null,"Calzature o Vestiario",null,null,null,null,null,null,null,null,null,null,null,null,null,null,null,null,null,null,null,null,null,null,null,null,null,null,null,null,null,null,null,null,0]
[null,"Varie",null,null,null,null,null,null,null,null,null,null,null,null,null,null,null,null,null,null,null,null,null,null,null,null,null,null,null,null,null,null,null,null,0]
["RIEPILOGO DATI",null,null,null,null,null,null,null,null,null,null,null,null,null,null,null,null,null,null,null,null,null,null,null,null,null,null,null,null,null,null,"TOTALE MESE",null,null,{"$f":"SUM(AI3:AI23)","v":0},{"$f":"AJ7","v":0}]

{"sheet":"Febbraio","index":3,"n_rows":24,"n_cols":36,"rows_kept":24,"cut":false,"hidden":false,"merged":[[23,26,25,28],[23,29,25,30],[0,35,1,35],[2,35,4,35],[7,35,22,35],[23,35,25,35],[0,31,1,33],[4,1,4,2],[5,1,5,2],[7,1,7,2],[8,1,8,2],[22,1,22,2],[9,1,9,2],[10,1,10,2],[16,1,16,2],[18,1,18,2],[19,1,19,2],[20,1,20,2],[17,1,17,2],[14,1,14,2],[6,1,6,2],[23,0,25,0],[0,34,1,34],[23,34,25,34],[15,1,15,2],[11,1,11,2],[12,1,12,2],[13,1,13,2],[9,0,15,0],[16,0,22,0],[21,1,21,2],[23,31,25,33],[0,0,1,0],[0,1,1,2],[2,0,8,0],[2,1,2,2],[3,1,3,2]]}
["Febbraio '2017","GIORNO",null,1,2,3,4,5,6,7,8,9,10,11,12,13,14,15,16,17,18,19,20,21,22,23,24,25,26,27,28,null,null,null,"TOTALI","PUNTI ESSO"]
[null,null,null,"M","G","V","S","D","L","M","M","G","V","S","D","L","M","M","G","V","S","D","L","M","M","G","V","S","D","L","M"]
["SPESE AUTO","Autostrada",null,null,null,null,null,null,null,null,null,null,null,null,null,null,null,null,null,null,null,null,null,null,null,null,null,null,null,null,null,null,null,null,{"$f":"SUM(D3:AH3)","v":0}]
[null,"Assicurazione",null,null,null,null,null,null,null,null,null,null,null,null,null,null,null,null,null,null,null,null,null,null,null,null,null,null,null,null,null,null,null,null,0]
[null,"Bollo",null,null,null,null,null,null,null,null,null,null,null,null,null,null,null,null,null,null,null,null,null,null,null,null,null,null,null,null,null,null,null,null,0]
[null,"Carburante",null,null,null,null,null,null,null,null,null,null,null,null,null,null,null,null,null,null,null,null,null,null,null,null,null,null,null,null,null,null,null,null,0]
[null,"Punti Esso",null,null,null,null,null,null,null,null,null,null,null,null,null,null,null,null,null,null,null,null,null,null,null,null,null,null,null,null,null,null,null,null,null,{"$f":"SUM(D7:AH7)","v":0}]
[null,"Tagliando",null,null,null,null,null,null,null,null,null,null,null,null,null,null,null,null,null,null,null,null,null,null,null,null,null,null,null,null,null,null,null,null,0]
[null,"Varie",null,null,null,null,null,null,null,null,null,null,null,null,null,null,null,null,null,null,null,null,null,null,null,null,null,null,null,null,null,null,null,null,0]
["SPESE CASA","Spese Condominiali",null,null,null,null,null,null,null,null,null,null,null,null,null,null,null,null,null,null,null,null,null,null,null,null,null,null,null,null,null,null,null,null,0]
[null,"Panetteria",null,null,null,null,null,null,null,null,null,null,null,null,null,null,null,null,null,null,null,null,null,null,null,null,null,null,null,null,null,null,null,null,0]
[null,"Macelleria",null,null,null,null,null,null,null,null,null,null,null,null,null,null,null,null,null,null,null,null,null,null,null,null,null,null,null,null,null,null,null,null,0]
[null,"Mercato",null,null,null,null,null,null,null,null,null,null,null,null,null,null,null,null,null,null,null,null,null,null,null,null,null,null,null,null,null,null,null,null,0]
[null,"Supermercato",null,null,null,null,null,null,null,null,null,null,null,null,null,null,null,null,null,null,null,null,null,null,null,null,null,null,null,null,null,null,null,null,0]
[null,"Farmacia",null,null,null,null,null,null,null,null,null,null,null,null,null,null,null,null,null,null,null,null,null,null,null,null,null,null,null,null,null,null,null,null,0]
[null,"Varie",null,null,null,null,null,null,null,null,null,null,null,null,null,null,null,null,null,null,null,null,null,null,null,null,null,null,null,null,null,null,null,null,0]
["SPESE VARIE","Bar",null,null,null,null,null,null,null,null,null,null,null,null,null,null,null,null,null,null,null,null,null,null,null,null,null,null,null,null,null,null,null,null,0]
[null,"Ristorante",null,null,null,null,null,null,null,null,null,null,null,null,null,null,null,null,null,null,null,null,null,null,null,null,null,null,null,null,null,null,null,null,0]
[null,"Ricarica Cellulare",null,null,null,null,null,null,null,null,null,null,null,null,null,null,null,null,null,null,null,null,null,null,null,null,null,null,null,null,null,null,null,null,0]
[null,"Viaggi o Ferie",null,null,null,null,null,null,null,null,null,null,null,null,null,null,null,null,null,null,null,null,null,null,null,null,null,null,null,null,null,null,null,null,0]
[null,"Medico o Dentista",null,null,null,null,null,null,null,null,null,null,null,null,null,null,null,null,null,null,null,null,null,null,null,null,null,null,null,null,null,null,null,null,0]
[null,"Calzature o Vestiario",null,null,null,null,null,null,null,null,null,null,null,null,null,null,null,null,null,null,null,null,null,null,null,null,null,null,null,null,null,null,null,null,0]
[null,"Varie",null,null,null,null,null,null,null,null,null,null,null,null,null,null,null,null,null,null,null,null,null,null,null,null,null,null,null,null,null,null,null,null,0]
["RIEPILOGO DATI",null,null,null,null,null,null,null,null,null,null,null,null,null,null,null,null,null,null,null,null,null,null,null,null,null,"TOTALE GENERALE",null,null,{"$f":"SUM(AI24+Gennaio!AI24)","v":0},null,"TOTALE MESE",null,null,{"$f":"SUM(AI3:AI23)","v":0},{"$f":"AJ7+Gennaio!AJ24","v":0}]

{"sheet":"Marzo","index":4,"n_rows":24,"n_cols":36,"rows_kept":24,"cut":false,"hidden":false,"merged":[[0,35,1,35],[2,35,4,35],[7,35,22,35],[23,35,25,35],[4,1,4,2],[5,1,5,2],[7,1,7,2],[8,1,8,2],[17,1,17,2],[14,1,14,2],[6,1,6,2],[23,26,25,28],[23,29,25,30],[9,0,15,0],[9,1,9,2],[10,1,10,2],[11,1,11,2],[12,1,12,2],[13,1,13,2],[15,1,15,2],[23,0,25,0],[0,34,1,34],[23,34,25,34],[16,0,22,0],[16,1,16,2],[18,1,18,2],[19,1,19,2],[20,1,20,2],[21,1,21,2],[22,1,22,2],[23,31,25,33],[0,0,1,0],[0,1,1,2],[2,0,8,0],[2,1,2,2],[3,1,3,2]]}
["Marzo '2017","GIORNO",null,1,2,3,4,5,6,7,8,9,10,11,12,13,14,15,16,17,18,19,20,21,22,23,24,25,26,27,28,29,30,31,"TOTALI","PUNTI ESSO"]
[null,null,null,"M","G","V","S","D","L","M","M","G","V","S","D","L","M","M","G","V","S","D","L","M","M","G","V","S","D","L","M","M","G","V"]
["SPESE AUTO","Autostrada",null,null,null,null,null,null,null,null,null,null,null,null,null,null,null,null,null,null,null,null,null,null,null,null,null,null,null,null,null,null,null,null,{"$f":"SUM(D3:AH3)","v":0}]
[null,"Assicurazione",null,null,null,null,null,null,null,null,null,null,null,null,null,null,null,null,null,null,null,null,null,null,null,null,null,null,null,null,null,null,null,null,0]
[null,"Bollo",null,null,null,null,null,null,null,null,null,null,null,null,null,null,null,null,null,null,null,null,null,null,null,null,null,null,null,null,null,null,null,null,0]
[null,"Carburante",null,null,null,null,null,null,null,null,null,null,null,null,null,null,null,null,null,null,null,null,null,null,null,null,null,null,null,null,null,null,null,null,0]
[null,"Punti Esso",null,null,null,null,null,null,null,null,null,null,null,null,null,null,null,null,null,null,null,null,null,null,null,null,null,null,null,null,null,null,null,null,null,{"$f":"SUM(D7:AH7)","v":0}]
[null,"Tagliando",null,null,null,null,null,null,null,null,null,null,null,null,null,null,null,null,null,null,null,null,null,null,null,null,null,null,null,null,null,null,null,null,0]
[null,"Varie",null,null,null,null,null,null,null,null,null,null,null,null,null,null,null,null,null,null,null,null,null,null,null,null,null,null,null,null,null,null,null,null,0]
["SPESE CASA","Spese Condominiali",null,null,null,null,null,null,null,null,null,null,null,null,null,null,null,null,null,null,null,null,null,null,null,null,null,null,null,null,null,null,null,null,0]
[null,"Panetteria",null,null,null,null,null,null,null,null,null,null,null,null,null,null,null,null,null,null,null,null,null,null,null,null,null,null,null,null,null,null,null,null,0]
[null,"Macelleria",null,null,null,null,null,null,null,null,null,null,null,null,null,null,null,null,null,null,null,null,null,null,null,null,null,null,null,null,null,null,null,null,0]
[null,"Mercato",null,null,null,null,null,null,null,null,null,null,null,null,null,null,null,null,null,null,null,null,null,null,null,null,null,null,null,null,null,null,null,null,0]
[null,"Supermercato",null,null,null,null,null,null,null,null,null,null,null,null,null,null,null,null,null,null,null,null,null,null,null,null,null,null,null,null,null,null,null,null,0]
[null,"Farmacia",null,null,null,null,null,null,null,null,null,null,null,null,null,null,null,null,null,null,null,null,null,null,null,null,null,null,null,null,null,null,null,null,0]
[null,"Varie",null,null,null,null,null,null,null,null,null,null,null,null,null,null,null,null,null,null,null,null,null,null,null,null,null,null,null,null,null,null,null,null,0]
["SPESE VARIE","Bar",null,null,null,null,null,null,null,null,null,null,null,null,null,null,null,null,null,null,null,null,null,null,null,null,null,null,null,null,null,null,null,null,0]
[null,"Ristorante",null,null,null,null,null,null,null,null,null,null,null,null,null,null,null,null,null,null,null,null,null,null,null,null,null,null,null,null,null,null,null,null,0]
[null,"Ricarica Cellulare",null,null,null,null,null,null,null,null,null,null,null,null,null,null,null,null,null,null,null,null,null,null,null,null,null,null,null,null,null,null,null,null,0]
[null,"Viaggi o Ferie",null,null,null,null,null,null,null,null,null,null,null,null,null,null,null,null,null,null,null,null,null,null,null,null,null,null,null,null,null,null,null,null,0]
[null,"Medico o Dentista",null,null,null,null,null,null,null,null,null,null,null,null,null,null,null,null,null,null,null,null,null,null,null,null,null,null,null,null,null,null,null,null,0]
[null,"Calzature o Vestiario",null,null,null,null,null,null,null,null,null,null,null,null,null,null,null,null,null,null,null,null,null,null,null,null,null,null,null,null,null,null,null,null,0]
[null,"Varie",null,null,null,null,null,null,null,null,null,null,null,null,null,null,null,null,null,null,null,null,null,null,null,null,null,null,null,null,null,null,null,null,0]
["RIEPILOGO DATI",null,null,null,null,null,null,null,null,null,null,null,null,null,null,null,null,null,null,null,null,null,null,null,null,null,"TOTALE GENERALE",null,null,{"$f":"SUM(AI24+Gennaio!AI24+Febbraio!AI24)","v":0},null,"TOTALE MESE",null,null,{"$f":"SUM(AI3:AI23)","v":0},{"$f":"AJ7+Febbraio!AJ24","v":0}]

{"sheet":"Aprile","index":5,"n_rows":24,"n_cols":36,"rows_kept":24,"cut":false,"hidden":false,"merged":[[23,35,25,35],[0,33,1,33],[4,1,4,2],[5,1,5,2],[7,1,7,2],[8,1,8,2],[17,1,17,2],[14,1,14,2],[6,1,6,2],[0,35,1,35],[2,35,4,35],[7,35,22,35],[23,26,25,28],[23,29,25,30],[9,0,15,0],[9,1,9,2],[10,1,10,2],[11,1,11,2],[12,1,12,2],[13,1,13,2],[15,1,15,2],[23,0,25,0],[0,34,1,34],[23,34,25,34],[16,0,22,0],[16,1,16,2],[18,1,18,2],[19,1,19,2],[20,1,20,2],[21,1,21,2],[22,1,22,2],[23,31,25,33],[0,0,1,0],[0,1,1,2],[2,0,8,0],[2,1,2,2],[3,1,3,2]]}
["Aprile '2017","GIORNO",null,1,2,3,4,5,6,7,8,9,10,11,12,13,14,15,16,17,18,19,20,21,22,23,24,25,26,27,28,29,30,null,"TOTALI","PUNTI ESSO"]
[null,null,null,"S","D","L","M","M","G","V","S","D","L","M","M","G","V","S","D","L","M","M","G","V","S","D","L","M","M","G","V","S","D"]
["SPESE AUTO","Autostrada",null,null,null,null,null,null,null,null,null,null,null,null,null,null,null,null,null,null,null,null,null,null,null,null,null,null,null,null,null,null,null,null,{"$f":"SUM(D3:AH3)","v":0}]
[null,"Assicurazione",null,null,null,null,null,null,null,null,null,null,null,null,null,null,null,null,null,null,null,null,null,null,null,null,null,null,null,null,null,null,null,null,0]
[null,"Bollo",null,null,null,null,null,null,null,null,null,null,null,null,null,null,null,null,null,null,null,null,null,null,null,null,null,null,null,null,null,null,null,null,0]
[null,"Carburante",null,null,null,null,null,null,null,null,null,null,null,null,null,null,null,null,null,null,null,null,null,null,null,null,null,null,null,null,null,null,null,null,0]
[null,"Punti Esso",null,null,null,null,null,null,null,null,null,null,null,null,null,null,null,null,null,null,null,null,null,null,null,null,null,null,null,null,null,null,null,null,null,{"$f":"SUM(D7:AH7)","v":0}]
[null,"Tagliando",null,null,null,null,null,null,null,null,null,null,null,null,null,null,null,null,null,null,null,null,null,null,null,null,null,null,null,null,null,null,null,null,0]
[null,"Varie",null,null,null,null,null,null,null,null,null,null,null,null,null,null,null,null,null,null,null,null,null,null,null,null,null,null,null,null,null,null,null,null,0]
["SPESE CASA","Spese Condominiali",null,null,null,null,null,null,null,null,null,null,null,null,null,null,null,null,null,null,null,null,null,null,null,null,null,null,null,null,null,null,null,null,0]
[null,"Panetteria",null,null,null,null,null,null,null,null,null,null,null,null,null,null,null,null,null,null,null,null,null,null,null,null,null,null,null,null,null,null,null,null,0]
[null,"Macelleria",null,null,null,null,null,null,null,null,null,null,null,null,null,null,null,null,null,null,null,null,null,null,null,null,null,null,null,null,null,null,null,null,0]
[null,"Mercato",null,null,null,null,null,null,null,null,null,null,null,null,null,null,null,null,null,null,null,null,null,null,null,null,null,null,null,null,null,null,null,null,0]
[null,"Supermercato",null,null,null,null,null,null,null,null,null,null,null,null,null,null,null,null,null,null,null,null,null,null,null,null,null,null,null,null,null,null,null,null,0]
[null,"Farmacia",null,null,null,null,null,null,null,null,null,null,null,null,null,null,null,null,null,null,null,null,null,null,null,null,null,null,null,null,null,null,null,null,0]
[null,"Varie",null,null,null,null,null,null,null,null,null,null,null,null,null,null,null,null,null,null,null,null,null,null,null,null,null,null,null,null,null,null,null,null,0]
["SPESE VARIE","Bar",null,null,null,null,null,null,null,null,null,null,null,null,null,null,null,null,null,null,null,null,null,null,null,null,null,null,null,null,null,null,null,null,0]
[null,"Ristorante",null,null,null,null,null,null,null,null,null,null,null,null,null,null,null,null,null,null,null,null,null,null,null,null,null,null,null,null,null,null,null,null,0]
[null,"Ricarica Cellulare",null,null,null,null,null,null,null,null,null,null,null,null,null,null,null,null,null,null,null,null,null,null,null,null,null,null,null,null,null,null,null,null,0]
[null,"Viaggi o Ferie",null,null,null,null,null,null,null,null,null,null,null,null,null,null,null,null,null,null,null,null,null,null,null,null,null,null,null,null,null,null,null,null,0]
[null,"Medico o Dentista",null,null,null,null,null,null,null,null,null,null,null,null,null,null,null,null,null,null,null,null,null,null,null,null,null,null,null,null,null,null,null,null,0]
[null,"Calzature o Vestiario",null,null,null,null,null,null,null,null,null,null,null,null,null,null,null,null,null,null,null,null,null,null,null,null,null,null,null,null,null,null,null,null,0]
[null,"Varie",null,null,null,null,null,null,null,null,null,null,null,null,null,null,null,null,null,null,null,null,null,null,null,null,null,null,null,null,null,null,null,null,0]
["RIEPILOGO DATI",null,null,null,null,null,null,null,null,null,null,null,null,null,null,null,null,null,null,null,null,null,null,null,null,null,"TOTALE GENERALE",null,null,{"$f":"SUM(AI24+Gennaio!AI24+Febbraio!AI24+Marzo!AI24)","v":0},null,"TOTALE MESE",null,null,{"$f":"SUM(AI3:AI23)","v":0},{"$f":"AJ7+Marzo!AJ24","v":0}]

{"sheet":"Maggio","index":6,"n_rows":24,"n_cols":36,"rows_kept":24,"cut":false,"hidden":false,"merged":[[0,35,1,35],[2,35,4,35],[7,35,22,35],[23,35,25,35],[4,1,4,2],[5,1,5,2],[7,1,7,2],[8,1,8,2],[17,1,17,2],[14,1,14,2],[6,1,6,2],[23,26,25,28],[23,29,25,30],[9,0,15,0],[9,1,9,2],[10,1,10,2],[11,1,11,2],[12,1,12,2],[13,1,13,2],[15,1,15,2],[23,0,25,0],[0,34,1,34],[23,34,25,34],[16,0,22,0],[16,1,16,2],[18,1,18,2],[19,1,19,2],[20,1,20,2],[21,1,21,2],[22,1,22,2],[23,31,25,33],[0,0,1,0],[0,1,1,2],[2,0,8,0],[2,1,2,2],[3,1,3,2]]}
["Maggio '2017","GIORNO",null,1,2,3,4,5,6,7,8,9,10,11,12,13,14,15,16,17,18,19,20,21,22,23,24,25,26,27,28,29,30,31,"TOTALI","PUNTI ESSO"]
[null,null,null,"L","M","M","G","V","S","D","L","M","M","G","V","S","D","L","M","M","G","V","S","D","L","M","M","G","V","S","D","L","M","M"]
["SPESE AUTO","Autostrada",null,null,null,null,null,null,null,null,null,null,null,null,null,null,null,null,null,null,null,null,null,null,null,null,null,null,null,null,null,null,null,null,{"$f":"SUM(D3:AH3)","v":0}]
[null,"Assicurazione",null,null,null,null,null,null,null,null,null,null,null,null,null,null,null,null,null,null,null,null,null,null,null,null,null,null,null,null,null,null,null,null,0]
[null,"Bollo",null,null,null,null,null,null,null,null,null,null,null,null,null,null,null,null,null,null,null,null,null,null,null,null,null,null,null,null,null,null,null,null,0]
[null,"Carburante",null,null,null,null,null,null,null,null,null,null,null,null,null,null,null,null,null,null,null,null,null,null,null,null,null,null,null,null,null,null,null,null,0]
[null,"Punti Esso",null,null,null,null,null,null,null,null,null,null,null,null,null,null,null,null,null,null,null,null,null,null,null,null,null,null,null,null,null,null,null,null,null,{"$f":"SUM(D7:AH7)","v":0}]
[null,"Tagliando",null,null,null,null,null,null,null,null,null,null,null,null,null,null,null,null,null,null,null,null,null,null,null,null,null,null,null,null,null,null,null,null,0]
[null,"Varie",null,null,null,null,null,null,null,null,null,null,null,null,null,null,null,null,null,null,null,null,null,null,null,null,null,null,null,null,null,null,null,null,0]
["SPESE CASA","Spese Condominiali",null,null,null,null,null,null,null,null,null,null,null,null,null,null,null,null,null,null,null,null,null,null,null,null,null,null,null,null,null,null,null,null,0]
[null,"Panetteria",null,null,null,null,null,null,null,null,null,null,null,null,null,null,null,null,null,null,null,null,null,null,null,null,null,null,null,null,null,null,null,null,0]
[null,"Macelleria",null,null,null,null,null,null,null,null,null,null,null,null,null,null,null,null,null,null,null,null,null,null,null,null,null,null,null,null,null,null,null,null,0]
[null,"Mercato",null,null,null,null,null,null,null,null,null,null,null,null,null,null,null,null,null,null,null,null,null,null,null,null,null,null,null,null,null,null,null,null,0]
[null,"Supermercato",null,null,null,null,null,null,null,null,null,null,null,null,null,null,null,null,null,null,null,null,null,null,null,null,null,null,null,null,null,null,null,null,0]
[null,"Farmacia",null,null,null,null,null,null,null,null,null,null,null,null,null,null,null,null,null,null,null,null,null,null,null,null,null,null,null,null,null,null,null,null,0]
[null,"Varie",null,null,null,null,null,null,null,null,null,null,null,null,null,null,null,null,null,null,null,null,null,null,null,null,null,null,null,null,null,null,null,null,0]
["SPESE VARIE","Bar",null,null,null,null,null,null,null,null,null,null,null,null,null,null,null,null,null,null,null,null,null,null,null,null,null,null,null,null,null,null,null,null,0]
[null,"Ristorante",null,null,null,null,null,null,null,null,null,null,null,null,null,null,null,null,null,null,null,null,null,null,null,null,null,null,null,null,null,null,null,null,0]
[null,"Ricarica Cellulare",null,null,null,null,null,null,null,null,null,null,null,null,null,null,null,null,null,null,null,null,null,null,null,null,null,null,null,null,null,null,null,null,0]
[null,"Viaggi o Ferie",null,null,null,null,null,null,null,null,null,null,null,null,null,null,null,null,null,null,null,null,null,null,null,null,null,null,null,null,null,null,null,null,0]
[null,"Medico o Dentista",null,null,null,null,null,null,null,null,null,null,null,null,null,null,null,null,null,null,null,null,null,null,null,null,null,null,null,null,null,null,null,null,0]
[null,"Calzature o Vestiario",null,null,null,null,null,null,null,null,null,null,null,null,null,null,null,null,null,null,null,null,null,null,null,null,null,null,null,null,null,null,null,null,0]
[null,"Varie",null,null,null,null,null,null,null,null,null,null,null,null,null,null,null,null,null,null,null,null,null,null,null,null,null,null,null,null,null,null,null,null,0]
["RIEPILOGO DATI",null,null,null,null,null,null,null,null,null,null,null,null,null,null,null,null,null,null,null,null,null,null,null,null,null,"TOTALE GENERALE",null,null,{"$f":"SUM(AI24+Gennaio!AI24+Febbraio!AI24+Marzo!AI24+Aprile!AI24)","v":0},null,"TOTALE MESE",null,null,{"$f":"SUM(AI3:AI23)","v":0},{"$f":"AJ7+Aprile!AJ24","v":0}]

{"sheet":"Giugno","index":7,"n_rows":24,"n_cols":36,"rows_kept":24,"cut":false,"hidden":false,"merged":[[23,35,25,35],[0,33,1,33],[4,1,4,2],[5,1,5,2],[7,1,7,2],[8,1,8,2],[17,1,17,2],[14,1,14,2],[6,1,6,2],[0,35,1,35],[2,35,4,35],[7,35,22,35],[23,26,25,28],[23,29,25,30],[9,0,15,0],[9,1,9,2],[10,1,10,2],[11,1,11,2],[12,1,12,2],[13,1,13,2],[15,1,15,2],[23,0,25,0],[0,34,1,34],[23,34,25,34],[16,0,22,0],[16,1,16,2],[18,1,18,2],[19,1,19,2],[20,1,20,2],[21,1,21,2],[22,1,22,2],[23,31,25,33],[0,0,1,0],[0,1,1,2],[2,0,8,0],[2,1,2,2],[3,1,3,2]]}
["Giugno '2017","GIORNO",null,1,2,3,4,5,6,7,8,9,10,11,12,13,14,15,16,17,18,19,20,21,22,23,24,25,26,27,28,29,30,null,"TOTALI","PUNTI ESSO"]
[null,null,null,"G","V","S","D","L","M","M","G","V","S","D","L","M","M","G","V","S","D","L","M","M","G","V","S","D","L","M","M","G","V"]
["SPESE AUTO","Autostrada",null,null,null,null,null,null,null,null,null,null,null,null,null,null,null,null,null,null,null,null,null,null,null,null,null,null,null,null,null,null,null,null,{"$f":"SUM(D3:AH3)","v":0}]
[null,"Assicurazione",null,null,null,null,null,null,null,null,null,null,null,null,null,null,null,null,null,null,null,null,null,null,null,null,null,null,null,null,null,null,null,null,0]
[null,"Bollo",null,null,null,null,null,null,null,null,null,null,null,null,null,null,null,null,null,null,null,null,null,null,null,null,null,null,null,null,null,null,null,null,0]
[null,"Carburante",null,null,null,null,null,null,null,null,null,null,null,null,null,null,null,null,null,null,null,null,null,null,null,null,null,null,null,null,null,null,null,null,0]
[null,"Punti Esso",null,null,null,null,null,null,null,null,null,null,null,null,null,null,null,null,null,null,null,null,null,null,null,null,null,null,null,null,null,null,null,null,null,{"$f":"SUM(D7:AH7)","v":0}]
[null,"Tagliando",null,null,null,null,null,null,null,null,null,null,null,null,null,null,null,null,null,null,null,null,null,null,null,null,null,null,null,null,null,null,null,null,0]
[null,"Varie",null,null,null,null,null,null,null,null,null,null,null,null,null,null,null,null,null,null,null,null,null,null,null,null,null,null,null,null,null,null,null,null,0]
["SPESE CASA","Spese Condominiali",null,null,null,null,null,null,null,null,null,null,null,null,null,null,null,null,null,null,null,null,null,null,null,null,null,null,null,null,null,null,null,null,0]
[null,"Panetteria",null,null,null,null,null,null,null,null,null,null,null,null,null,null,null,null,null,null,null,null,null,null,null,null,null,null,null,null,null,null,null,null,0]
[null,"Macelleria",null,null,null,null,null,null,null,null,null,null,null,null,null,null,null,null,null,null,null,null,null,null,null,null,null,null,null,null,null,null,null,null,0]
[null,"Mercato",null,null,null,null,null,null,null,null,null,null,null,null,null,null,null,null,null,null,null,null,null,null,null,null,null,null,null,null,null,null,null,null,0]
[null,"Supermercato",null,null,null,null,null,null,null,null,null,null,null,null,null,null,null,null,null,null,null,null,null,null,null,null,null,null,null,null,null,null,null,null,0]
[null,"Farmacia",null,null,null,null,null,null,null,null,null,null,null,null,null,null,null,null,null,null,null,null,null,null,null,null,null,null,null,null,null,null,null,null,0]
[null,"Varie",null,null,null,null,null,null,null,null,null,null,null,null,null,null,null,null,null,null,null,null,null,null,null,null,null,null,null,null,null,null,null,null,0]
["SPESE VARIE","Bar",null,null,null,null,null,null,null,null,null,null,null,null,null,null,null,null,null,null,null,null,null,null,null,null,null,null,null,null,null,null,null,null,0]
[null,"Ristorante",null,null,null,null,null,null,null,null,null,null,null,null,null,null,null,null,null,null,null,null,null,null,null,null,null,null,null,null,null,null,null,null,0]
[null,"Ricarica Cellulare",null,null,null,null,null,null,null,null,null,null,null,null,null,null,null,null,null,null,null,null,null,null,null,null,null,null,null,null,null,null,null,null,0]
[null,"Viaggi o Ferie",null,null,null,null,null,null,null,null,null,null,null,null,null,null,null,null,null,null,null,null,null,null,null,null,null,null,null,null,null,null,null,null,0]
[null,"Medico o Dentista",null,null,null,null,null,null,null,null,null,null,null,null,null,null,null,null,null,null,null,null,null,null,null,null,null,null,null,null,null,null,null,null,0]
[null,"Calzature o Vestiario",null,null,null,null,null,null,null,null,null,null,null,null,null,null,null,null,null,null,null,null,null,null,null,null,null,null,null,null,null,null,null,null,0]
[null,"Varie",null,null,null,null,null,null,null,null,null,null,null,null,null,null,null,null,null,null,null,null,null,null,null,null,null,null,null,null,null,null,null,null,0]
["RIEPILOGO DATI",null,null,null,null,null,null,null,null,null,null,null,null,null,null,null,null,null,null,null,null,null,null,null,null,null,"TOTALE GENERALE",null,null,{"$f":"SUM(AI24+Gennaio!AI24+Febbraio!AI24+Marzo!AI24+Aprile!AI24+Maggio!AI24)","v":0},null,"TOTALE MESE",null,null,{"$f":"SUM(AI3:AI23)","v":0},{"$f":"AJ7+Maggio!AJ24","v":0}]

{"sheet":"Luglio","index":8,"n_rows":24,"n_cols":36,"rows_kept":24,"cut":false,"hidden":false,"merged":[[0,35,1,35],[2,35,4,35],[7,35,22,35],[23,35,25,35],[4,1,4,2],[5,1,5,2],[7,1,7,2],[8,1,8,2],[17,1,17,2],[14,1,14,2],[6,1,6,2],[23,26,25,28],[23,29,25,30],[9,0,15,0],[9,1,9,2],[10,1,10,2],[11,1,11,2],[12,1,12,2],[13,1,13,2],[15,1,15,2],[23,0,25,0],[0,34,1,34],[23,34,25,34],[16,0,22,0],[16,1,16,2],[18,1,18,2],[19,1,19,2],[20,1,20,2],[21,1,21,2],[22,1,22,2],[23,31,25,33],[0,0,1,0],[0,1,1,2],[2,0,8,0],[2,1,2,2],[3,1,3,2]]}
["Luglio '2017","GIORNO",null,1,2,3,4,5,6,7,8,9,10,11,12,13,14,15,16,17,18,19,20,21,22,23,24,25,26,27,28,29,30,31,"TOTALI","PUNTI ESSO"]
[null,null,null,"S","D","L","M","M","G","V","S","D","L","M","M","G","V","S","D","L","M","M","G","V","S","D","L","M","M","G","V","S","D","L"]
["SPESE AUTO","Autostrada",null,null,null,null,null,null,null,null,null,null,null,null,null,null,null,null,null,null,null,null,null,null,null,null,null,null,null,null,null,null,null,null,{"$f":"SUM(D3:AH3)","v":0}]
[null,"Assicurazione",null,null,null,null,null,null,null,null,null,null,null,null,null,null,null,null,null,null,null,null,null,null,null,null,null,null,null,null,null,null,null,null,0]
[null,"Bollo",null,null,null,null,null,null,null,null,null,null,null,null,null,null,null,null,null,null,null,null,null,null,null,null,null,null,null,null,null,null,null,null,0]
[null,"Carburante",null,null,null,null,null,null,null,null,null,null,null,null,null,null,null,null,null,null,null,null,null,null,null,null,null,null,null,null,null,null,null,null,0]
[null,"Punti Esso",null,null,null,null,null,null,null,null,null,null,null,null,null,null,null,null,null,null,null,null,null,null,null,null,null,null,null,null,null,null,null,null,null,{"$f":"SUM(D7:AH7)","v":0}]
[null,"Tagliando",null,null,null,null,null,null,null,null,null,null,null,null,null,null,null,null,null,null,null,null,null,null,null,null,null,null,null,null,null,null,null,null,0]
[null,"Varie",null,null,null,null,null,null,null,null,null,null,null,null,null,null,null,null,null,null,null,null,null,null,null,null,null,null,null,null,null,null,null,null,0]
["SPESE CASA","Spese Condominiali",null,null,null,null,null,null,null,null,null,null,null,null,null,null,null,null,null,null,null,null,null,null,null,null,null,null,null,null,null,null,null,null,0]
[null,"Panetteria",null,null,null,null,null,null,null,null,null,null,null,null,null,null,null,null,null,null,null,null,null,null,null,null,null,null,null,null,null,null,null,null,0]
[null,"Macelleria",null,null,null,null,null,null,null,null,null,null,null,null,null,null,null,null,null,null,null,null,null,null,null,null,null,null,null,null,null,null,null,null,0]
[null,"Mercato",null,null,null,null,null,null,null,null,null,null,null,null,null,null,null,null,null,null,null,null,null,null,null,null,null,null,null,null,null,null,null,null,0]
[null,"Supermercato",null,null,null,null,null,null,null,null,null,null,null,null,null,null,null,null,null,null,null,null,null,null,null,null,null,null,null,null,null,null,null,null,0]
[null,"Farmacia",null,null,null,null,null,null,null,null,null,null,null,null,null,null,null,null,null,null,null,null,null,null,null,null,null,null,null,null,null,null,null,null,0]
[null,"Varie",null,null,null,null,null,null,null,null,null,null,null,null,null,null,null,null,null,null,null,null,null,null,null,null,null,null,null,null,null,null,null,null,0]
["SPESE VARIE","Bar",null,null,null,null,null,null,null,null,null,null,null,null,null,null,null,null,null,null,null,null,null,null,null,null,null,null,null,null,null,null,null,null,0]
[null,"Ristorante",null,null,null,null,null,null,null,null,null,null,null,null,null,null,null,null,null,null,null,null,null,null,null,null,null,null,null,null,null,null,null,null,0]
[null,"Ricarica Cellulare",null,null,null,null,null,null,null,null,null,null,null,null,null,null,null,null,null,null,null,null,null,null,null,null,null,null,null,null,null,null,null,null,0]
[null,"Viaggi o Ferie",null,null,null,null,null,null,null,null,null,null,null,null,null,null,null,null,null,null,null,null,null,null,null,null,null,null,null,null,null,null,null,null,0]
[null,"Medico o Dentista",null,null,null,null,null,null,null,null,null,null,null,null,null,null,null,null,null,null,null,null,null,null,null,null,null,null,null,null,null,null,null,null,0]
[null,"Calzature o Vestiario",null,null,null,null,null,null,null,null,null,null,null,null,null,null,null,null,null,null,null,null,null,null,null,null,null,null,null,null,null,null,null,null,0]
[null,"Varie",null,null,null,null,null,null,null,null,null,null,null,null,null,null,null,null,null,null,null,null,null,null,null,null,null,null,null,null,null,null,null,null,0]
["RIEPILOGO DATI",null,null,null,null,null,null,null,null,null,null,null,null,null,null,null,null,null,null,null,null,null,null,null,null,null,"TOTALE GENERALE",null,null,{"$f":"SUM(AI24+Gennaio!AI24+Febbraio!AI24+Marzo!AI24+Aprile!AI24+Maggio!AI24+Giugno!AI24)","v":0},null,"TOTALE MESE",null,null,{"$f":"SUM(AI3:AI23)","v":0},{"$f":"AJ7+Giugno!AJ24","v":0}]

{"sheet":"Agosto","index":9,"n_rows":24,"n_cols":36,"rows_kept":24,"cut":false,"hidden":false,"merged":[[0,35,1,35],[2,35,4,35],[7,35,22,35],[23,35,25,35],[4,1,4,2],[5,1,5,2],[7,1,7,2],[8,1,8,2],[17,1,17,2],[14,1,14,2],[6,1,6,2],[23,26,25,28],[23,29,25,30],[9,0,15,0],[9,1,9,2],[10,1,10,2],[11,1,11,2],[12,1,12,2],[13,1,13,2],[15,1,15,2],[23,0,25,0],[0,34,1,34],[23,34,25,34],[16,0,22,0],[16,1,16,2],[18,1,18,2],[19,1,19,2],[20,1,20,2],[21,1,21,2],[22,1,22,2],[23,31,25,33],[0,0,1,0],[0,1,1,2],[2,0,8,0],[2,1,2,2],[3,1,3,2]]}
["Agosto '2017","GIORNO",null,1,2,3,4,5,6,7,8,9,10,11,12,13,14,15,16,17,18,19,20,21,22,23,24,25,26,27,28,29,30,31,"TOTALI","PUNTI ESSO"]
[null,null,null,"M","M","G","V","S","D","L","M","M","G","V","S","D","L","M","M","G","V","S","D","L","M","M","G","V","S","D","L","M","M","G"]
["SPESE AUTO","Autostrada",null,null,null,null,null,null,null,null,null,null,null,null,null,null,null,null,null,null,null,null,null,null,null,null,null,null,null,null,null,null,null,null,{"$f":"SUM(D3:AH3)","v":0}]
[null,"Assicurazione",null,null,null,null,null,null,null,null,null,null,null,null,null,null,null,null,null,null,null,null,null,null,null,null,null,null,null,null,null,null,null,null,0]
[null,"Bollo",null,null,null,null,null,null,null,null,null,null,null,null,null,null,null,null,null,null,null,null,null,null,null,null,null,null,null,null,null,null,null,null,0]
[null,"Carburante",null,null,null,null,null,null,null,null,null,null,null,null,null,null,null,null,null,null,null,null,null,null,null,null,null,null,null,null,null,null,null,null,0]
[null,"Punti Esso",null,null,null,null,null,null,null,null,null,null,null,null,null,null,null,null,null,null,null,null,null,null,null,null,null,null,null,null,null,null,null,null,null,{"$f":"SUM(D7:AH7)","v":0}]
[null,"Tagliando",null,null,null,null,null,null,null,null,null,null,null,null,null,null,null,null,null,null,null,null,null,null,null,null,null,null,null,null,null,null,null,null,0]
[null,"Varie",null,null,null,null,null,null,null,null,null,null,null,null,null,null,null,null,null,null,null,null,null,null,null,null,null,null,null,null,null,null,null,null,0]
["SPESE CASA","Spese Condominiali",null,null,null,null,null,null,null,null,null,null,null,null,null,null,null,null,null,null,null,null,null,null,null,null,null,null,null,null,null,null,null,null,0]
[null,"Panetteria",null,null,null,null,null,null,null,null,null,null,null,null,null,null,null,null,null,null,null,null,null,null,null,null,null,null,null,null,null,null,null,null,0]
[null,"Macelleria",null,null,null,null,null,null,null,null,null,null,null,null,null,null,null,null,null,null,null,null,null,null,null,null,null,null,null,null,null,null,null,null,0]
[null,"Mercato",null,null,null,null,null,null,null,null,null,null,null,null,null,null,null,null,null,null,null,null,null,null,null,null,null,null,null,null,null,null,null,null,0]
[null,"Supermercato",null,null,null,null,null,null,null,null,null,null,null,null,null,null,null,null,null,null,null,null,null,null,null,null,null,null,null,null,null,null,null,null,0]
[null,"Farmacia",null,null,null,null,null,null,null,null,null,null,null,null,null,null,null,null,null,null,null,null,null,null,null,null,null,null,null,null,null,null,null,null,0]
[null,"Varie",null,null,null,null,null,null,null,null,null,null,null,null,null,null,null,null,null,null,null,null,null,null,null,null,null,null,null,null,null,null,null,null,0]
["SPESE VARIE","Bar",null,null,null,null,null,null,null,null,null,null,null,null,null,null,null,null,null,null,null,null,null,null,null,null,null,null,null,null,null,null,null,null,0]
[null,"Ristorante",null,null,null,null,null,null,null,null,null,null,null,null,null,null,null,null,null,null,null,null,null,null,null,null,null,null,null,null,null,null,null,null,0]
[null,"Ricarica Cellulare",null,null,null,null,null,null,null,null,null,null,null,null,null,null,null,null,null,null,null,null,null,null,null,null,null,null,null,null,null,null,null,null,0]
[null,"Viaggi o Ferie",null,null,null,null,null,null,null,null,null,null,null,null,null,null,null,null,null,null,null,null,null,null,null,null,null,null,null,null,null,null,null,null,0]
[null,"Medico o Dentista",null,null,null,null,null,null,null,null,null,null,null,null,null,null,null,null,null,null,null,null,null,null,null,null,null,null,null,null,null,null,null,null,0]
[null,"Calzature o Vestiario",null,null,null,null,null,null,null,null,null,null,null,null,null,null,null,null,null,null,null,null,null,null,null,null,null,null,null,null,null,null,null,null,0]
[null,"Varie",null,null,null,null,null,null,null,null,null,null,null,null,null,null,null,null,null,null,null,null,null,null,null,null,null,null,null,null,null,null,null,null,0]
["RIEPILOGO DATI",null,null,null,null,null,null,null,null,null,null,null,null,null,null,null,null,null,null,null,null,null,null,null,null,null,"TOTALE GENERALE",null,null,{"$f":"SUM(AI24+Gennaio!AI24+Febbraio!AI24+Marzo!AI24+Aprile!AI24+Maggio!AI24+Giugno!AI24+Luglio!AI24)","v":0},null,"TOTALE MESE",null,null,{"$f":"SUM(AI3:AI23)","v":0},{"$f":"AJ7+Luglio!AJ24","v":0}]

{"sheet":"Settembre","index":10,"n_rows":24,"n_cols":36,"rows_kept":24,"cut":false,"hidden":false,"merged":[[23,35,25,35],[0,33,1,33],[4,1,4,2],[5,1,5,2],[7,1,7,2],[8,1,8,2],[17,1,17,2],[14,1,14,2],[6,1,6,2],[0,35,1,35],[2,35,4,35],[7,35,22,35],[23,26,25,28],[23,29,25,30],[9,0,15,0],[9,1,9,2],[10,1,10,2],[11,1,11,2],[12,1,12,2],[13,1,13,2],[15,1,15,2],[23,0,25,0],[0,34,1,34],[23,34,25,34],[16,0,22,0],[16,1,16,2],[18,1,18,2],[19,1,19,2],[20,1,20,2],[21,1,21,2],[22,1,22,2],[23,31,25,33],[0,0,1,0],[0,1,1,2],[2,0,8,0],[2,1,2,2],[3,1,3,2]]}
["Settembre '2017","GIORNO",null,1,2,3,4,5,6,7,8,9,10,11,12,13,14,15,16,17,18,19,20,21,22,23,24,25,26,27,28,29,30,null,"TOTALI","PUNTI ESSO"]
[null,null,null,"V","S","D","L","M","M","G","V","S","D","L","M","M","G","V","S","D","L","M","M","G","V","S","D","L","M","M","G","V","S"]
["SPESE AUTO","Autostrada",null,null,null,null,null,null,null,null,null,null,null,null,null,null,null,null,null,null,null,null,null,null,null,null,null,null,null,null,null,null,null,null,{"$f":"SUM(D3:AH3)","v":0}]
[null,"Assicurazione",null,null,null,null,null,null,null,null,null,null,null,null,null,null,null,null,null,null,null,null,null,null,null,null,null,null,null,null,null,null,null,null,0]
[null,"Bollo",null,null,null,null,null,null,null,null,null,null,null,null,null,null,null,null,null,null,null,null,null,null,null,null,null,null,null,null,null,null,null,null,0]
[null,"Carburante",null,null,null,null,null,null,null,null,null,null,null,null,null,null,null,null,null,null,null,null,null,null,null,null,null,null,null,null,null,null,null,null,0]
[null,"Punti Esso",null,null,null,null,null,null,null,null,null,null,null,null,null,null,null,null,null,null,null,null,null,null,null,null,null,null,null,null,null,null,null,null,null,{"$f":"SUM(D7:AH7)","v":0}]
[null,"Tagliando",null,null,null,null,null,null,null,null,null,null,null,null,null,null,null,null,null,null,null,null,null,null,null,null,null,null,null,null,null,null,null,null,0]
[null,"Varie",null,null,null,null,null,null,null,null,null,null,null,null,null,null,null,null,null,null,null,null,null,null,null,null,null,null,null,null,null,null,null,null,0]
["SPESE CASA","Spese Condominiali",null,null,null,null,null,null,null,null,null,null,null,null,null,null,null,null,null,null,null,null,null,null,null,null,null,null,null,null,null,null,null,null,0]
[null,"Panetteria",null,null,null,null,null,null,null,null,null,null,null,null,null,null,null,null,null,null,null,null,null,null,null,null,null,null,null,null,null,null,null,null,0]
[null,"Macelleria",null,null,null,null,null,null,null,null,null,null,null,null,null,null,null,null,null,null,null,null,null,null,null,null,null,null,null,null,null,null,null,null,0]
[null,"Mercato",null,null,null,null,null,null,null,null,null,null,null,null,null,null,null,null,null,null,null,null,null,null,null,null,null,null,null,null,null,null,null,null,0]
[null,"Supermercato",null,null,null,null,null,null,null,null,null,null,null,null,null,null,null,null,null,null,null,null,null,null,null,null,null,null,null,null,null,null,null,null,0]
[null,"Farmacia",null,null,null,null,null,null,null,null,null,null,null,null,null,null,null,null,null,null,null,null,null,null,null,null,null,null,null,null,null,null,null,null,0]
[null,"Varie",null,null,null,null,null,null,null,null,null,null,null,null,null,null,null,null,null,null,null,null,null,null,null,null,null,null,null,null,null,null,null,null,0]
["SPESE VARIE","Bar",null,null,null,null,null,null,null,null,null,null,null,null,null,null,null,null,null,null,null,null,null,null,null,null,null,null,null,null,null,null,null,null,0]
[null,"Ristorante",null,null,null,null,null,null,null,null,null,null,null,null,null,null,null,null,null,null,null,null,null,null,null,null,null,null,null,null,null,null,null,null,0]
[null,"Ricarica Cellulare",null,null,null,null,null,null,null,null,null,null,null,null,null,null,null,null,null,null,null,null,null,null,null,null,null,null,null,null,null,null,null,null,0]
[null,"Viaggi o Ferie",null,null,null,null,null,null,null,null,null,null,null,null,null,null,null,null,null,null,null,null,null,null,null,null,null,null,null,null,null,null,null,null,0]
[null,"Medico o Dentista",null,null,null,null,null,null,null,null,null,null,null,null,null,null,null,null,null,null,null,null,null,null,null,null,null,null,null,null,null,null,null,null,0]
[null,"Calzature o Vestiario",null,null,null,null,null,null,null,null,null,null,null,null,null,null,null,null,null,null,null,null,null,null,null,null,null,null,null,null,null,null,null,null,0]
[null,"Varie",null,null,null,null,null,null,null,null,null,null,null,null,null,null,null,null,null,null,null,null,null,null,null,null,null,null,null,null,null,null,null,null,0]
["RIEPILOGO DATI",null,null,null,null,null,null,null,null,null,null,null,null,null,null,null,null,null,null,null,null,null,null,null,null,null,"TOTALE GENERALE",null,null,{"$f":"SUM(AI24+Gennaio!AI24+Febbraio!AI24+Marzo!AI24+Aprile!AI24+Maggio!AI24+Giugno!AI24+Luglio!AI24+Agosto!AI24)","v":0},null,"TOTALE MESE",null,null,{"$f":"SUM(AI3:AI23)","v":0},{"$f":"AJ7+Agosto!AJ24","v":0}]

{"sheet":"Ottobre","index":11,"n_rows":24,"n_cols":36,"rows_kept":24,"cut":false,"hidden":false,"merged":[[0,35,1,35],[2,35,4,35],[7,35,22,35],[23,35,25,35],[4,1,4,2],[5,1,5,2],[7,1,7,2],[8,1,8,2],[17,1,17,2],[14,1,14,2],[6,1,6,2],[23,26,25,28],[23,29,25,30],[9,0,15,0],[9,1,9,2],[10,1,10,2],[11,1,11,2],[12,1,12,2],[13,1,13,2],[15,1,15,2],[23,0,25,0],[0,34,1,34],[23,34,25,34],[16,0,22,0],[16,1,16,2],[18,1,18,2],[19,1,19,2],[20,1,20,2],[21,1,21,2],[22,1,22,2],[23,31,25,33],[0,0,1,0],[0,1,1,2],[2,0,8,0],[2,1,2,2],[3,1,3,2]]}
["Ottobre '2017","GIORNO",null,1,2,3,4,5,6,7,8,9,10,11,12,13,14,15,16,17,18,19,20,21,22,23,24,25,26,27,28,29,30,31,"TOTALI","PUNTI ESSO"]
[null,null,null,"D","L","M","M","G","V","S","D","L","M","M","G","V","S","D","L","M","M","G","V","S","D","L","M","M","G","V","S","D","L","M"]
["SPESE AUTO","Autostrada",null,null,null,null,null,null,null,null,null,null,null,null,null,null,null,null,null,null,null,null,null,null,null,null,null,null,null,null,null,null,null,null,{"$f":"SUM(D3:AH3)","v":0}]
[null,"Assicurazione",null,null,null,null,null,null,null,null,null,null,null,null,null,null,null,null,null,null,null,null,null,null,null,null,null,null,null,null,null,null,null,null,0]
[null,"Bollo",null,null,null,null,null,null,null,null,null,null,null,null,null,null,null,null,null,null,null,null,null,null,null,null,null,null,null,null,null,null,null,null,0]
[null,"Carburante",null,null,null,null,null,null,null,null,null,null,null,null,null,null,null,null,null,null,null,null,null,null,null,null,null,null,null,null,null,null,null,null,0]
[null,"Punti Esso",null,null,null,null,null,null,null,null,null,null,null,null,null,null,null,null,null,null,null,null,null,null,null,null,null,null,null,null,null,null,null,null,null,{"$f":"SUM(D7:AH7)","v":0}]
[null,"Tagliando",null,null,null,null,null,null,null,null,null,null,null,null,null,null,null,null,null,null,null,null,null,null,null,null,null,null,null,null,null,null,null,null,0]
[null,"Varie",null,null,null,null,null,null,null,null,null,null,null,null,null,null,null,null,null,null,null,null,null,null,null,null,null,null,null,null,null,null,null,null,0]
["SPESE CASA","Spese Condominiali",null,null,null,null,null,null,null,null,null,null,null,null,null,null,null,null,null,null,null,null,null,null,null,null,null,null,null,null,null,null,null,null,0]
[null,"Panetteria",null,null,null,null,null,null,null,null,null,null,null,null,null,null,null,null,null,null,null,null,null,null,null,null,null,null,null,null,null,null,null,null,0]
[null,"Macelleria",null,null,null,null,null,null,null,null,null,null,null,null,null,null,null,null,null,null,null,null,null,null,null,null,null,null,null,null,null,null,null,null,0]
[null,"Mercato",null,null,null,null,null,null,null,null,null,null,null,null,null,null,null,null,null,null,null,null,null,null,null,null,null,null,null,null,null,null,null,null,0]
[null,"Supermercato",null,null,null,null,null,null,null,null,null,null,null,null,null,null,null,null,null,null,null,null,null,null,null,null,null,null,null,null,null,null,null,null,0]
[null,"Farmacia",null,null,null,null,null,null,null,null,null,null,null,null,null,null,null,null,null,null,null,null,null,null,null,null,null,null,null,null,null,null,null,null,0]
[null,"Varie",null,null,null,null,null,null,null,null,null,null,null,null,null,null,null,null,null,null,null,null,null,null,null,null,null,null,null,null,null,null,null,null,0]
["SPESE VARIE","Bar",null,null,null,null,null,null,null,null,null,null,null,null,null,null,null,null,null,null,null,null,null,null,null,null,null,null,null,null,null,null,null,null,0]
[null,"Ristorante",null,null,null,null,null,null,null,null,null,null,null,null,null,null,null,null,null,null,null,null,null,null,null,null,null,null,null,null,null,null,null,null,0]
[null,"Ricarica Cellulare",null,null,null,null,null,null,null,null,null,null,null,null,null,null,null,null,null,null,null,null,null,null,null,null,null,null,null,null,null,null,null,null,0]
[null,"Viaggi o Ferie",null,null,null,null,null,null,null,null,null,null,null,null,null,null,null,null,null,null,null,null,null,null,null,null,null,null,null,null,null,null,null,null,0]
[null,"Medico o Dentista",null,null,null,null,null,null,null,null,null,null,null,null,null,null,null,null,null,null,null,null,null,null,null,null,null,null,null,null,null,null,null,null,0]
[null,"Calzature o Vestiario",null,null,null,null,null,null,null,null,null,null,null,null,null,null,null,null,null,null,null,null,null,null,null,null,null,null,null,null,null,null,null,null,0]
[null,"Varie",null,null,null,null,null,null,null,null,null,null,null,null,null,null,null,null,null,null,null,null,null,null,null,null,null,null,null,null,null,null,null,null,0]
["RIEPILOGO DATI",null,null,null,null,null,null,null,null,null,null,null,null,null,null,null,null,null,null,null,null,null,null,null,null,null,"TOTALE GENERALE",null,null,{"$f":"SUM(AI24+Gennaio!AI24+Febbraio!AI24+Marzo!AI24+Aprile!AI24+Maggio!AI24+Giugno!AI24+Luglio!AI24+Agosto!AI24+Settembre!AI24)","v":0},null,"TOTALE MESE",null,null,{"$f":"SUM(AI3:AI23)","v":0},{"$f":"AJ7+Settembre!AJ24","v":0}]

{"sheet":"Novembre","index":12,"n_rows":24,"n_cols":36,"rows_kept":24,"cut":false,"hidden":false,"merged":[[23,35,25,35],[0,33,1,33],[4,1,4,2],[5,1,5,2],[7,1,7,2],[8,1,8,2],[17,1,17,2],[14,1,14,2],[6,1,6,2],[0,35,1,35],[2,35,4,35],[7,35,22,35],[23,26,25,28],[23,29,25,30],[9,0,15,0],[9,1,9,2],[10,1,10,2],[11,1,11,2],[12,1,12,2],[13,1,13,2],[15,1,15,2],[23,0,25,0],[0,34,1,34],[23,34,25,34],[16,0,22,0],[16,1,16,2],[18,1,18,2],[19,1,19,2],[20,1,20,2],[21,1,21,2],[22,1,22,2],[23,31,25,33],[0,0,1,0],[0,1,1,2],[2,0,8,0],[2,1,2,2],[3,1,3,2]]}
["Novembre '2017","GIORNO",null,1,2,3,4,5,6,7,8,9,10,11,12,13,14,15,16,17,18,19,20,21,22,23,24,25,26,27,28,29,30,null,"TOTALI","PUNTI ESSO"]
[null,null,null,"M","G","V","S","D","L","M","M","G","V","S","D","L","M","M","G","V","S","D","L","M","M","G","V","S","D","L","M","M","G"]
["SPESE AUTO","Autostrada",null,null,null,null,null,null,null,null,null,null,null,null,null,null,null,null,null,null,null,null,null,null,null,null,null,null,null,null,null,null,null,null,{"$f":"SUM(D3:AH3)","v":0}]
[null,"Assicurazione",null,null,null,null,null,null,null,null,null,null,null,null,null,null,null,null,null,null,null,null,null,null,null,null,null,null,null,null,null,null,null,null,0]
[null,"Bollo",null,null,null,null,null,null,null,null,null,null,null,null,null,null,null,null,null,null,null,null,null,null,null,null,null,null,null,null,null,null,null,null,0]
[null,"Carburante",null,null,null,null,null,null,null,null,null,null,null,null,null,null,null,null,null,null,null,null,null,null,null,null,null,null,null,null,null,null,null,null,0]
[null,"Punti Esso",null,null,null,null,null,null,null,null,null,null,null,null,null,null,null,null,null,null,null,null,null,null,null,null,null,null,null,null,null,null,null,null,null,{"$f":"SUM(D7:AH7)","v":0}]
[null,"Tagliando",null,null,null,null,null,null,null,null,null,null,null,null,null,null,null,null,null,null,null,null,null,null,null,null,null,null,null,null,null,null,null,null,0]
[null,"Varie",null,null,null,null,null,null,null,null,null,null,null,null,null,null,null,null,null,null,null,null,null,null,null,null,null,null,null,null,null,null,null,null,0]
["SPESE CASA","Spese Condominiali",null,null,null,null,null,null,null,null,null,null,null,null,null,null,null,null,null,null,null,null,null,null,null,null,null,null,null,null,null,null,null,null,0]
[null,"Panetteria",null,null,null,null,null,null,null,null,null,null,null,null,null,null,null,null,null,null,null,null,null,null,null,null,null,null,null,null,null,null,null,null,0]
[null,"Macelleria",null,null,null,null,null,null,null,null,null,null,null,null,null,null,null,null,null,null,null,null,null,null,null,null,null,null,null,null,null,null,null,null,0]
[null,"Mercato",null,null,null,null,null,null,null,null,null,null,null,null,null,null,null,null,null,null,null,null,null,null,null,null,null,null,null,null,null,null,null,null,0]
[null,"Supermercato",null,null,null,null,null,null,null,null,null,null,null,null,null,null,null,null,null,null,null,null,null,null,null,null,null,null,null,null,null,null,null,null,0]
[null,"Farmacia",null,null,null,null,null,null,null,null,null,null,null,null,null,null,null,null,null,null,null,null,null,null,null,null,null,null,null,null,null,null,null,null,0]
[null,"Varie",null,null,null,null,null,null,null,null,null,null,null,null,null,null,null,null,null,null,null,null,null,null,null,null,null,null,null,null,null,null,null,null,0]
["SPESE VARIE","Bar",null,null,null,null,null,null,null,null,null,null,null,null,null,null,null,null,null,null,null,null,null,null,null,null,null,null,null,null,null,null,null,null,0]
[null,"Ristorante",null,null,null,null,null,null,null,null,null,null,null,null,null,null,null,null,null,null,null,null,null,null,null,null,null,null,null,null,null,null,null,null,0]
[null,"Ricarica Cellulare",null,null,null,null,null,null,null,null,null,null,null,null,null,null,null,null,null,null,null,null,null,null,null,null,null,null,null,null,null,null,null,null,0]
[null,"Viaggi o Ferie",null,null,null,null,null,null,null,null,null,null,null,null,null,null,null,null,null,null,null,null,null,null,null,null,null,null,null,null,null,null,null,null,0]
[null,"Medico o Dentista",null,null,null,null,null,null,null,null,null,null,null,null,null,null,null,null,null,null,null,null,null,null,null,null,null,null,null,null,null,null,null,null,0]
[null,"Calzature o Vestiario",null,null,null,null,null,null,null,null,null,null,null,null,null,null,null,null,null,null,null,null,null,null,null,null,null,null,null,null,null,null,null,null,0]
[null,"Varie",null,null,null,null,null,null,null,null,null,null,null,null,null,null,null,null,null,null,null,null,null,null,null,null,null,null,null,null,null,null,null,null,0]
["RIEPILOGO DATI",null,null,null,null,null,null,null,null,null,null,null,null,null,null,null,null,null,null,null,null,null,null,null,null,null,"TOTALE GENERALE",null,null,{"$f":"SUM(AI24+Gennaio!AI24+Febbraio!AI24+Marzo!AI24+Aprile!AI24+Maggio!AI24+Giugno!AI24+Luglio!AI24+Agosto!AI24+Settembre!AI24+Ottobre!AI24)","v":0},null,"TOTALE MESE",null,null,{"$f":"SUM(AI3:AI23)","v":0},{"$f":"AJ7+Ottobre!AJ24","v":0}]

{"sheet":"Dicembre","index":13,"n_rows":24,"n_cols":36,"rows_kept":24,"cut":false,"hidden":false,"merged":[[0,35,1,35],[2,35,4,35],[7,35,22,35],[23,35,25,35],[4,1,4,2],[5,1,5,2],[7,1,7,2],[8,1,8,2],[17,1,17,2],[14,1,14,2],[6,1,6,2],[23,26,25,28],[23,29,25,30],[9,0,15,0],[9,1,9,2],[10,1,10,2],[11,1,11,2],[12,1,12,2],[13,1,13,2],[15,1,15,2],[23,0,25,0],[0,34,1,34],[23,34,25,34],[16,0,22,0],[16,1,16,2],[18,1,18,2],[19,1,19,2],[20,1,20,2],[21,1,21,2],[22,1,22,2],[23,31,25,33],[0,0,1,0],[0,1,1,2],[2,0,8,0],[2,1,2,2],[3,1,3,2]]}
["Dicembre '2017","GIORNO",null,1,2,3,4,5,6,7,8,9,10,11,12,13,14,15,16,17,18,19,20,21,22,23,24,25,26,27,28,29,30,31,"TOTALI","PUNTI ESSO"]
[null,null,null,"V","S","D","L","M","M","G","V","S","D","L","M","M","G","V","S","D","L","M","M","G","V","S","D","L","M","M","G","V","S","D"]
["SPESE AUTO","Autostrada",null,null,null,null,null,null,null,null,null,null,null,null,null,null,null,null,null,null,null,null,null,null,null,null,null,null,null,null,null,null,null,null,{"$f":"SUM(D3:AH3)","v":0}]
[null,"Assicurazione",null,null,null,null,null,null,null,null,null,null,null,null,null,null,null,null,null,null,null,null,null,null,null,null,null,null,null,null,null,null,null,null,0]
[null,"Bollo",null,null,null,null,null,null,null,null,null,null,null,null,null,null,null,null,null,null,null,null,null,null,null,null,null,null,null,null,null,null,null,null,0]
[null,"Carburante",null,null,null,null,null,null,null,null,null,null,null,null,null,null,null,null,null,null,null,null,null,null,null,null,null,null,null,null,null,null,null,null,0]
[null,"Punti Esso",null,null,null,null,null,null,null,null,null,null,null,null,null,null,null,null,null,null,null,null,null,null,null,null,null,null,null,null,null,null,null,null,null,{"$f":"SUM(D7:AH7)","v":0}]
[null,"Tagliando",null,null,null,null,null,null,null,null,null,null,null,null,null,null,null,null,null,null,null,null,null,null,null,null,null,null,null,null,null,null,null,null,0]
[null,"Varie",null,null,null,null,null,null,null,null,null,null,null,null,null,null,null,null,null,null,null,null,null,null,null,null,null,null,null,null,null,null,null,null,0]
["SPESE CASA","Spese Condominiali",null,null,null,null,null,null,null,null,null,null,null,null,null,null,null,null,null,null,null,null,null,null,null,null,null,null,null,null,null,null,null,null,0]
[null,"Panetteria",null,null,null,null,null,null,null,null,null,null,null,null,null,null,null,null,null,null,null,null,null,null,null,null,null,null,null,null,null,null,null,null,0]
[null,"Macelleria",null,null,null,null,null,null,null,null,null,null,null,null,null,null,null,null,null,null,null,null,null,null,null,null,null,null,null,null,null,null,null,null,0]
[null,"Mercato",null,null,null,null,null,null,null,null,null,null,null,null,null,null,null,null,null,null,null,null,null,null,null,null,null,null,null,null,null,null,null,null,0]
[null,"Supermercato",null,null,null,null,null,null,null,null,null,null,null,null,null,null,null,null,null,null,null,null,null,null,null,null,null,null,null,null,null,null,null,null,0]
[null,"Farmacia",null,null,null,null,null,null,null,null,null,null,null,null,null,null,null,null,null,null,null,null,null,null,null,null,null,null,null,null,null,null,null,null,0]
[null,"Varie",null,null,null,null,null,null,null,null,null,null,null,null,null,null,null,null,null,null,null,null,null,null,null,null,null,null,null,null,null,null,null,null,0]
["SPESE VARIE","Bar",null,null,null,null,null,null,null,null,null,null,null,null,null,null,null,null,null,null,null,null,null,null,null,null,null,null,null,null,null,null,null,null,0]
[null,"Ristorante",null,null,null,null,null,null,null,null,null,null,null,null,null,null,null,null,null,null,null,null,null,null,null,null,null,null,null,null,null,null,null,null,0]
[null,"Ricarica Cellulare",null,null,null,null,null,null,null,null,null,null,null,null,null,null,null,null,null,null,null,null,null,null,null,null,null,null,null,null,null,null,null,null,0]
[null,"Viaggi o Ferie",null,null,null,null,null,null,null,null,null,null,null,null,null,null,null,null,null,null,null,null,null,null,null,null,null,null,null,null,null,null,null,null,0]
[null,"Medico o Dentista",null,null,null,null,null,null,null,null,null,null,null,null,null,null,null,null,null,null,null,null,null,null,null,null,null,null,null,null,null,null,null,null,0]
[null,"Calzature o Vestiario",null,null,null,null,null,null,null,null,null,null,null,null,null,null,null,null,null,null,null,null,null,null,null,null,null,null,null,null,null,null,null,null,0]
[null,"Varie",null,null,null,null,null,null,null,null,null,null,null,null,null,null,null,null,null,null,null,null,null,null,null,null,null,null,null,null,null,null,null,null,0]
["RIEPILOGO DATI",null,null,null,null,null,null,null,null,null,null,null,null,null,null,null,null,null,null,null,null,null,null,null,null,null,"TOTALE GENERALE",null,null,{"$f":"SUM(AI24+Gennaio!AI24+Febbraio!AI24+Marzo!AI24+Aprile!AI24+Maggio!AI24+Giugno!AI24+Luglio!AI24+Agosto!AI24+Settembre!AI24+Ottobre!AI24+Novembre!AI24)","v":0},null,"TOTALE MESE",null,null,{"$f":"SUM(AI3:AI23)","v":0},{"$f":"AJ7","v":0}]

{"sheet":"TOTALI","index":14,"n_rows":17,"n_cols":5,"rows_kept":17,"cut":false,"hidden":false,"merged":[[16,0,18,1],[16,2,18,3],[15,0,15,3],[0,0,0,4]]}
[]
["MESE","S P E S E   A U T O","S P E S E   C A S A","S P E S E   V A R I E","T O T A L I  M E S E"]
["Gennaio",{"$f":"SUM(Gennaio!AI3:AI9)","v":0},{"$f":"SUM(Gennaio!AI10:AI16)","v":0},{"$f":"SUM(Gennaio!AI17:AI23)","v":0},{"$f":"SUM(B3+C3+D3)","v":0}]
["Febbraio",{"$f":"SUM(Febbraio!AI3:AI9)","v":0},{"$f":"SUM(Febbraio!AI10:AI16)","v":0},{"$f":"SUM(Febbraio!AI17:AI23)","v":0},0]
["Marzo",{"$f":"SUM(Marzo!AI3:AI9)","v":0},{"$f":"SUM(Marzo!AI10:AI16)","v":0},{"$f":"SUM(Marzo!AI17:AI23)","v":0},0]
["Aprile",{"$f":"SUM(Aprile!AI3:AI9)","v":0},{"$f":"SUM(Aprile!AI10:AI16)","v":0},{"$f":"SUM(Aprile!AI17:AI23)","v":0},0]
["Maggio",{"$f":"SUM(Maggio!AI3:AI9)","v":0},{"$f":"SUM(Maggio!AI10:AI16)","v":0},{"$f":"SUM(Maggio!AI17:AI23)","v":0},0]
["Giugno",{"$f":"SUM(Giugno!AI3:AI9)","v":0},{"$f":"SUM(Giugno!AI10:AI16)","v":0},{"$f":"SUM(Giugno!AI17:AI23)","v":0},0]
["Luglio",{"$f":"SUM(Luglio!AI3:AI9)","v":0},{"$f":"SUM(Luglio!AI10:AI16)","v":0},{"$f":"SUM(Luglio!AI17:AI23)","v":0},0]
["Agosto",{"$f":"SUM(Agosto!AI3:AI9)","v":0},{"$f":"SUM(Agosto!AI10:AI16)","v":0},{"$f":"SUM(Agosto!AI17:AI23)","v":0},0]
["Settembre",{"$f":"SUM(Settembre!AI3:AI9)","v":0},{"$f":"SUM(Settembre!AI10:AI16)","v":0},{"$f":"SUM(Settembre!AI17:AI23)","v":0},0]
["Ottobre",{"$f":"SUM(Ottobre!AI3:AI9)","v":0},{"$f":"SUM(Ottobre!AI10:AI16)","v":0},{"$f":"SUM(Ottobre!AI17:AI23)","v":0},0]
["Novembre",{"$f":"SUM(Novembre!AI3:AI9)","v":0},{"$f":"SUM(Novembre!AI10:AI16)","v":0},{"$f":"SUM(Novembre!AI17:AI23)","v":0},0]
["Dicembre",{"$f":"SUM(Dicembre!AI3:AI9)","v":0},{"$f":"SUM(Dicembre!AI10:AI16)","v":0},{"$f":"SUM(Dicembre!AI17:AI23)","v":0},0]
["TOTALI  ANNO",{"$f":"SUM(B3:B14)","v":0},{"$f":"SUM(C3:C14)","v":0},{"$f":"SUM(D3:D14)","v":0}]
[]
["T O T A L E   EURO",null,{"$f":"SUM(B15+C15+D15)","v":0}]

{"sheet":"GRAFICI","index":15,"n_rows":68,"n_cols":28,"rows_kept":68,"cut":false,"hidden":false,"merged":[[50,18,50,26],[67,18,67,26],[16,0,16,8],[50,0,50,8],[67,0,67,8],[50,9,50,17],[67,9,67,17],[41,27,41,35],[33,0,33,8],[16,18,16,26],[33,18,33,26],[33,9,33,17],[16,9,16,17]]}
[]
[]
[]
[]
[]
[]
[]
[]
[]
[]
[]
[]
[]
[]
[]
[]
["RITORNO",null,null,null,null,null,null,null,null,"RITORNO",null,null,null,null,null,null,null,null,"RITORNO"]
[]
[]
[]
[]
[]
[]
[]
[]
[]
[]
[]
[]
[]
[]
[]
[]
["RITORNO",null,null,null,null,null,null,null,null,"RITORNO",null,null,null,null,null,null,null,null,"RITORNO"]
[]
[]
[]
[]
[]
[]
[]
[null,null,null,null,null,null,null,null,null,null,null,null,null,null,null,null,null,null,null,null,null,null,null,null,null,null,null,"RITORNO"]
[]
[]
[]
[]
[]
[]
[]
[]
["RITORNO",null,null,null,null,null,null,null,null,"RITORNO",null,null,null,null,null,null,null,null,"RITORNO"]
["Aprile!A1"]
[]
[]
[]
[]
[]
[]
[]
[]
[]
[]
[]
[]
[]
[]
[]
["RITORNO",null,null,null,null,null,null,null,null,"RITORNO",null,null,null,null,null,null,null,null,"RITORNO"]